Cogmind - Beta 12 @@@ ROGUE MODE // 2023.04.30 @ 21:45:56 Player: Exp. Geonium Core Result: Destroyed by BR-KOV(B) with Slug Cannon Performance ------------- Evolutions (3) 1500 Regions Visited (9) 1800 Robots Destroyed (73) 365 Value Destroyed (3085) 3085 Prototype IDs (25) 500 Alien Tech Used (0) 0 Bonus (1197) 1197 TOTAL SCORE: 8447 Bonus ------- High Alert Combat Kills 197 Entered Garrisons 200 Used RIF Installer 500 Aligned with FarCom 300 Cogmind --------- Core Integrity 0/700 Matter 285/300 Energy 148/150 System Corruption 0% Temperature Cool (0) Movement Core (300) Ox5 Location -6/Zion Parts ------- > --- POWER (1) -------- Micro Nuclear Core > --- PROPULSION (2) --- (None) > --- UTILITY (8) ------ Improved Heat Sink Advanced Heat Sink Machine Analyzer Experimental Sensor Array Seismic Detector Improved Utility Shielding Relay Coupler [NC] (26) > --- WEAPON (2) ------- Remote Datajack Makeshift Hammer > --- INVENTORY (5) ---- Huge Storage Unit Relay Coupler [NC] (18) Gauss Rifle Remote Datajack Axe Peak State ------------ > --- POWER ------------ Micro Nuclear Core > --- PROPULSION ------- Light Treads Advanced Treads > --- UTILITY ---------- Improved Heat Sink Advanced Heat Sink Huge Storage Unit Machine Analyzer Experimental Sensor Array Improved Propulsion Shielding Improved Utility Shielding Relay Coupler [NC] > --- WEAPON ----------- Gauss Rifle Heavy Machine Gun > --- INVENTORY -------- Light Nuclear Core High-capacity Storage Unit Armor Integrity Analyzer Transmission Jammer System Shield Relay Coupler [NC] Relay Coupler [NC] System Restoration Module Advanced Plasma Cannon Enhanced Autogun Flak Gun Hypervelocity Coil Gun Datajack Remote Datajack Remote Datajack Remote Datajack Remote Datajack Axe [Rating: 51] Favorites ----------- Power Micro Nuclear Core Engine Light Ion Engine Power Core Micro Nuclear Core Propulsion Light Treads Treads Light Treads Leg Aluminum Leg Wheel Armored Wheel Utility Machine Analyzer Device Seismic Detector Storage Huge Storage Unit Processor Machine Analyzer Hackware Relay Coupler [NC] Protection Improved Utility Shielding Weapon Enhanced Autogun Energy Gun AWS/Thermal Energy Cannon Advanced Plasma Cannon Ballistic Gun Enhanced Autogun Launcher Rocket Launcher Special Weapon Remote Datajack Impact Weapon Makeshift Hammer Slashing Weapon Axe Special Melee Weapon Datajack Build | -11 -10 -10 -10 -9 -8 -8 -7 -7 -6 ------- Run | Jun Mat Min Exi Min Mat Gar Fac Low Zio Slots Evolved 6 | . . . . . 4 . 2 . . Power . | . . . . . . . . . . Propulsion . | . . . . . . . . . . Utility 6 | . . . . . 4 . 2 . . Weapon . | . . . . . . . . . . Parts Attached 116 | . . 3 1 1 14 26 58 12 1 Power 7 | . . . . . 2 2 3 . . Engine 2 | . . . . . 1 1 . . . Core 5 | . . . . . 1 1 3 . . Reactor . | . . . . . . . . . . Propulsion 24 | . . 2 . . 2 9 9 2 . Treads 12 | . . 2 . . 2 2 4 2 . Leg . | . . . . . . . . . . Wheel 12 | . . . . . . 7 5 . . Hover . | . . . . . . . . . . Flight . | . . . . . . . . . . Utility 37 | . . 1 1 1 5 4 21 4 . Device 10 | . . . 1 . 2 . 5 2 . Storage 3 | . . . . 1 . 1 . 1 . Processor 4 | . . 1 . . . 1 2 . . Hackware 5 | . . . . . . . 5 . . Protection 15 | . . . . . 3 2 9 1 . Artifact . | . . . . . . . . . . Weapon 48 | . . . . . 5 11 25 6 1 Energy Gun 2 | . . . . . . 1 1 . . Energy Cannon 2 | . . . . . . . 2 . . Ballistic Gun 26 | . . . . . 3 6 12 5 . Ballistic Cannon . | . . . . . . . . . . Launcher 2 | . . . . . 1 . 1 . . Special Weapon 2 | . . . . . . . 1 . 1 Impact Weapon 1 | . . . . . . . . 1 . Slashing Weapon 11 | . . . . . 1 4 6 . . Piercing Weapon . | . . . . . . . . . . Special Melee Weapon 2 | . . . . . . . 2 . . Unidentified Prototypes 2 | . . . 1 . 1 . . . . Parts Lost 28 | . . . . . . 4 17 5 2 Power 5 | . . . . . . 2 3 . . Propulsion 7 | . . . . . . . 3 2 2 Utility 11 | . . . . . . 2 7 2 . Weapon 5 | . . . . . . . 4 1 . Highest Loss Streak 6 | . . . . . . 4 6 3 2 To Critical Strikes . | . . . . . . . . . . Average Slot Usage (%) 93 | . 85 59 61 71 89 94 97 98 100 Core 5 | . . . . . 1 8 6 7 7 Treads 10 | . . 21 28 28 17 1 . 13 15 Wheel 5 | . . . . . . 16 14 1 . Device 16 | . . . 4 4 12 18 10 23 30 Storage 7 | . 14 3 . 9 9 9 7 7 7 Processor 8 | . . 7 14 14 9 12 8 7 7 Hackware 6 | . . . . . . . 17 7 7 Protection 10 | . . . . . 14 9 13 12 7 Ballistic Gun 11 | . 28 17 14 14 16 12 6 10 7 Impact Weapon 1 | . . . . . . . . 3 7 Slashing Weapon 1 | . . . . . . 4 3 . . Naked Turns . | . . . . . . . . . . Heaviest Build 109 | 11 11 11 2 41 64 106 107 109 58 Greatest Support 42 | 20 20 20 3 40 42 42 24 42 42 Greatest Overweight (x) 8 | . . . . 1 1 5 8 4 1 Average Overweight (x) 1 | . . . . . 1 3 3 1 . Largest Inventory Capacity 25 | 8 8 8 5 20 20 25 25 25 20 Average Capacity 21 | 8 8 5 5 14 20 24 25 21 19 Most Carried 25 | 6 6 6 5 7 20 25 25 21 20 Average Carried 18 | 6 6 4 4 6 15 23 22 19 19 Final Capacity 25 | 8 8 5 5 20 20 25 25 20 5 Final Carried 23 | 6 6 5 5 7 20 23 20 20 5 Class Distribution -------------------- 59% | Scavenger-Mutant 26% | Mutant 5% | Bothacker-Mutant 3% | Scavenger-Skirmisher 3% | Scavenger-Assassin Dominant Class ---------------- Mutant | -10/Materials Mutant | -10/Mines Mutant | -10/Exiles Mutant | -9/Mines Mutant | -8/Materials Mutant | -8/Garrison Scavenger-Mutant | -7/Factory Scavenger-Mutant | -7/Lower Caves Scavenger-Mutant | -6/Zion Resources | -11 -10 -10 -10 -9 -8 -8 -7 -7 -6 ----------- Run | Jun Mat Min Exi Min Mat Gar Fac Low Zio Matter Collected 2768 | 176 64 54 . 20 267 539 1154 491 3 Remotely . | . . . . . . . . . . Salvage Created 3791 | . 185 . . . 340 1733 1078 455 . Parts 173 | . 7 . . . 21 68 59 18 . Haulers Intercepted 3 | . 1 . . . 1 1 . . . Recyclers Shooed 4 | . 1 . . . . . 3 . . Parts Field Recycled . | . . . . . . . . . . Retrieved Matter . | . . . . . . . . . . Parts Self-Destructed 17 | . . . . . . . . 17 . Prevented . | . . . . . . . . . . Kills | -11 -10 -10 -10 -9 -8 -8 -7 -7 -6 ------- Run | Jun Mat Min Exi Min Mat Gar Fac Low Zio Combat Hostiles Destroyed 64 | . 3 . . . 9 20 23 9 . Guns 56 | . 3 . . . 6 20 18 9 . Cannons 1 | . . . . . . . 1 . . AOE 7 | . . . . . 3 . 4 . . Classes Destroyed 12 | . 3 . . . 3 1 4 1 . Worker 1 | . . . . . . . 1 . . Builder 1 | . . . . . 1 . . . . Hauler 3 | . 1 . . . 1 1 . . . Mechanic 2 | . . . . . . . 2 . . Watcher 2 | . 1 . . . . . 1 . . Swarmer 16 | . . . . . 4 . 4 8 . Grunt 28 | . 3 . . . 2 16 7 . . Sentry 7 | . . . . . 3 3 1 . . Specialist 4 | . . . . . . 1 3 . . Hunter 3 | . . . . . . . 3 . . Programmer 6 | . . . . . . . 5 1 . Packrat 3 | . . . . . . . . 3 . Best Kill Streak 11 | . 4 . . . 4 9 11 4 . Combat Bots Only 9 | . 3 . . . 4 9 8 4 . Max Kills in Single Turn 3 | . 1 . . . 3 1 3 2 . Gunslinging 1 | . . . . . . . . 1 . Exploded 3 | . . . . . 3 . 2 . . Melee . | . . . . . . . . . . Uniques/NPCs Destroyed . | . . . . . . . . . . Combat | -11 -10 -10 -10 -9 -8 -8 -7 -7 -6 -------- Run | Jun Mat Min Exi Min Mat Gar Fac Low Zio Damage Taken 6347 | . 234 266 . . 391 1287 3184 813 172 Core 1104 | . 57 40 . . 51 255 572 109 20 Absorbed by Shields . | . . . . . . . . . . Redirected to Shielding 281 | . . . . . . . 120 132 29 Core Remaining (%) 68 | 100 . . . 61 . 44 . . . Volleys Fired 192 | . 16 1 . . 22 34 91 27 1 Largest 2 | . 2 2 . . 2 2 2 2 1 Hottest 128 | . 40 40 . . 50 50 98 128 5 Shots Fired 416 | . 32 2 . . 40 119 167 55 1 Gun 391 | . 32 2 . . 39 119 145 54 . Cannon 14 | . . . . . . . 13 1 . Launcher 5 | . . . . . 1 . 4 . . Special 6 | . . . . . . . 5 . 1 Kinetic 335 | . 32 2 . . 39 68 140 54 . Thermal 70 | . . . . . . 51 18 1 . Explosive 5 | . . . . . 1 . 4 . . Electromagnetic . | . . . . . . . . . . Robot Hit Streak 50 | . 9 1 . . 7 50 18 7 6 Robot Miss Streak 5 | . 2 2 . . 2 2 5 5 . Penetration Max 1 | . . . . . . . 1 . . Secondary Targets 10 | . 1 . . . . 3 3 3 . Max Gunslinging Chain 1 | . 1 . . . . 1 1 1 . Autonomous 57 | . . . . . . 51 6 . . Shots Hit Robots 327 | . 21 1 . . 29 133 110 32 1 Core Hits 161 | . 8 2 . . 16 55 57 23 . Critical Kills 6 | . . . . . . . 6 . . Critical Parts Destroyed 12 | . . . . . . 1 11 . . Critical Strikes 25 | . . . . . . 8 17 . . Destroy 18 | . . . . . . 1 17 . . Sever 7 | . . . . . . 7 . . . Melee Attacks 116 | . . . . . 1 63 47 5 . Impact 5 | . . . . . . . . 5 . Slashing 106 | . . . . . 1 63 42 . . Piercing . | . . . . . . . . . . Sneak Attacks 5 | . . . . . . . 5 . . Combat Hostiles . | . . . . . . . . . . Follow-up Attacks . | . . . . . . . . . . Damage Inflicted 8143 | . 214 9 . . 706 3873 2657 684 . Guns 5308 | . 212 8 . . 495 2258 1651 684 . Cannons 69 | . . . . . . . 69 . . Explosions 1105 | . . . . . 211 . 894 . . Melee 1658 | . . . . . . 1615 43 . . Ramming 3 | . 2 1 . . . . . . . Kinetic 3777 | . 212 8 . . 495 874 1504 684 . Thermal 1600 | . . . . . . 1384 216 . . Explosive 1105 | . . . . . 211 . 894 . . Electromagnetic . | . . . . . . . . . . Impact . | . . . . . . . . . . Slashing 1658 | . . . . . . 1615 43 . . Piercing . | . . . . . . . . . . Highest Corruption 6 | . . . . . . . 5 6 6 Average Corruption 5 | . . . . . . . 2 5 6 Corruption Purged 2 | . . . . . . . 2 . . Corruption Blocked . | . . . . . . . . . . Effects 113 | . . . . . . . 15 96 2 Message Errors 32 | . . . . . . . 6 26 . Matter Fused 23 | . . . . . . . 2 19 2 Heat Flow Errors 9 | . . . . . . . 1 8 . Energy Discharges 18 | . . . . . . . 1 17 . Data Loss (minor) 14 | . . . . . . . 2 12 . Data Loss (major) 7 | . . . . . . . 1 6 . Misfires 7 | . . . . . . . 2 5 . Alerts 3 | . . . . . . . . 3 . Overload Shots . | . . . . . . . . . . Overflow Damage 105 | . . . . . 13 92 . . . Projectiles . | . . . . . . . . . . Explosions 13 | . . . . . 13 . . . . Melee 92 | . . . . . . 92 . . . Knockbacks . | . . . . . . . . . . Impact . | . . . . . . . . . . Kinetic . | . . . . . . . . . . Secondary . | . . . . . . . . . . Self-Inflicted Damage 20 | . . . . . 11 . 9 . . Shots 2 | . . . . . 1 . 1 . . Rammed 1 | . . 1 . . . . . . . Targets Rammed 2 | . 1 1 . . . . . . . Kicked 1 | . 1 . . . . . . . . Crushed . | . . . . . . . . . . Highest Temperature 288 | . 15 20 . . 23 74 288 239 . Average Temperature 49 | . 8 20 . . 7 27 59 74 . Received Heat Transfer 1472 | . 123 80 . . 108 591 558 12 . Siege Activations . | . . . . . . . . . . Robots Corrupted . | . . . . . . . . . . Combat Hostiles . | . . . . . . . . . . Parts Fried . | . . . . . . . . . . Impact Corruptions . | . . . . . . . . . . Robots Melted . | . . . . . . . . . . Combat Hostiles . | . . . . . . . . . . Parts Melted 7 | . . . . . . 5 2 . . Heat Transferred 2024 | . . . . . . 1776 248 . . Parts Sabotaged . | . . . . . . . . . . Parts Stolen . | . . . . . . . . . . Parts Stripped . | . . . . . . . . . . Power Chain Reactions . | . . . . . . . . . . Missiles Intercepted . | . . . . . . . . . . Alert | -11 -10 -10 -10 -9 -8 -8 -7 -7 -6 ------- Run | Jun Mat Min Exi Min Mat Gar Fac Low Zio Peak Influence 712 | . 104 60 . . 152 712 510 . . Initial 373 | . . 40 . . . 95 373 . . Average 246 | . 50 49 . . 101 337 342 . . Maximum Alert Level 3 | . . . . . . 3 2 . . Low Security (%) 48 | 100 100 100 . 100 100 34 14 . . Level 1 26 | . . . . . . 6 62 . . Level 2 23 | . . . . . . 55 23 . . Level 3 . | . . . . . . 3 . . . Level 4 . | . . . . . . . . . . Level 5 . | . . . . . . . . . . High Security . | . . . . . . . . . . Max Security . | . . . . . . . . . . Squads Dispatched 6 | . . 1 . . . . 5 . . Investigation 3 | . . 1 . . . . 2 . . Extermination 2 | . . . . . . . 2 . . Reinforcement 1 | . . . . . . . 1 . . Assault . | . . . . . . . . . . Garrison . | . . . . . . . . . . Intercept . | . . . . . . . . . . Searches Triggered . | . . . . . . . . . . Construction Impeded . | . . . . . . . . . . Haulers Reinforced . | . . . . . . . . . . Active Scanning Responses . | . . . . . . . . . . Cargo Convoy Interrupts 1 | . . . . . . . 1 . . Stealth | -11 -10 -10 -10 -9 -8 -8 -7 -7 -6 --------- Run | Jun Mat Min Exi Min Mat Gar Fac Low Zio Distress Signals 5 | . . 2 . . 1 1 1 . . Communications Jammed . | . . . . . . . . . . Distress Signals . | . . . . . . . . . . Times Spotted 111 | . 8 16 . . 12 22 41 10 2 Peak Tracking Total 10 | . 5 5 . . 4 10 10 4 2 Tactical Retreats 14 | . 1 5 . . . . 7 1 . Traps | -11 -10 -10 -10 -9 -8 -8 -7 -7 -6 ------- Run | Jun Mat Min Exi Min Mat Gar Fac Low Zio Traps Triggered 4 | . . . . . . 2 2 . . Indirectly . | . . . . . . . . . . Trap Hack Attempts . | . . . . . . . . . . Triggered . | . . . . . . . . . . Disarmed . | . . . . . . . . . . Reprogrammed . | . . . . . . . . . . Reused . | . . . . . . . . . . Traps Extracted . | . . . . . . . . . . Installed . | . . . . . . . . . . Triggered . | . . . . . . . . . . Machines | -11 -10 -10 -10 -9 -8 -8 -7 -7 -6 ---------- Run | Jun Mat Min Exi Min Mat Gar Fac Low Zio Machines Disabled 2 | . . . . . 1 1 . . . Max in Single Turn 1 | . . . . . 1 1 . . . Garrison Access 3 | . . . . . . . 3 . . Garrison Relay 1 | . . . . . . 1 . . . Machines Repaired . | . . . . . . . . . . Machines Sabotaged . | . . . . . . . . . . Overloaded Fab Kills . | . . . . . . . . . . Hacking | -11 -10 -10 -10 -9 -8 -8 -7 -7 -6 --------- Run | Jun Mat Min Exi Min Mat Gar Fac Low Zio Machines Accessed 17 | . . 2 1 . 3 3 8 . . Terminals 10 | . . 1 . . 2 3 4 . . Fabricators 1 | . . . . . . . 1 . . Repair Stations . | . . . . . . . . . . Recycling Units . | . . . . . . . . . . Scanalyzers . | . . . . . . . . . . Garrison Access 4 | . . . . . 1 . 3 . . Total Hacks 31 | . . 2 1 . 6 5 17 . . Successful 13 | . . 2 1 . 2 1 7 . . Failed 18 | . . . . . 4 4 10 . . Catastrophic 8 | . . . . . . 2 6 . . Database Lockouts . | . . . . . . . . . . Manual 23 | . . . 1 . 5 3 14 . . Terminals 23 | . . 1 . . 5 5 12 . . Fabricators 1 | . . . . . . . 1 . . Repair Stations . | . . . . . . . . . . Recycling Units . | . . . . . . . . . . Scanalyzers . | . . . . . . . . . . Garrison Access 5 | . . . . . 1 . 4 . . Terminal Hacks 4 | . . 2 1 . . . 1 . . Open Door 1 | . . 1 . . . . . . . Terminal Index 1 | . . . . . . . 1 . . Zone Layout 1 | . . 1 . . . . . . . EX-Prototype ID Bank 1 | . . . 1 . . . . . . Fabricator Hacks . | . . . . . . . . . . Repair Station Hacks . | . . . . . . . . . . Recycling Unit Hacks . | . . . . . . . . . . Scanalyzer . | . . . . . . . . . . Garrison Access Hacks 4 | . . . . . 1 . 3 . . Unlock Access 1 | . . . . . 1 . . . . Seal Access 3 | . . . . . . . 3 . . Unauthorized Hacks 5 | . . . . . 1 1 3 . . Terminals 5 | . . . . . 1 1 3 . . Botnet 5 | . . . . . 1 1 3 . . Fabricators . | . . . . . . . . . . Repair Stations . | . . . . . . . . . . Recycling Units . | . . . . . . . . . . Scanalyzers . | . . . . . . . . . . Garrison Access . | . . . . . . . . . . Data Cores Recovered . | . . . . . . . . . . Used . | . . . . . . . . . . Hacking Detections 12 | . . . . . 3 3 6 . . Full Trace Events 1 | . . . . . . . 1 . . Feedback Events 1 | . . . . . . . 1 . . Hackware Fried 1 | . . . . . . . 1 . . Feedback Blocked . | . . . . . . . . . . Robot Schematics Acquired . | . . . . . . . . . . Robots Built . | . . . . . . . . . . Authchips . | . . . . . . . . . . Time . | . . . . . . . . . . Total Robot Build Rating . | . . . . . . . . . . Part Schematics Acquired . | . . . . . . . . . . Parts Built . | . . . . . . . . . . Authchips . | . . . . . . . . . . Time . | . . . . . . . . . . Total Part Build Rating . | . . . . . . . . . . Parts Repaired . | . . . . . . . . . . Time . | . . . . . . . . . . Parts Recycled . | . . . . . . . . . . Recycled Matter . | . . . . . . . . . . Retrieved Matter . | . . . . . . . . . . Retrieved Components . | . . . . . . . . . . Parts Scanalyzed . | . . . . . . . . . . Part Schematics Acquired . | . . . . . . . . . . Parts Damaged . | . . . . . . . . . . Bothacking | -11 -10 -10 -10 -9 -8 -8 -7 -7 -6 ------------ Run | Jun Mat Min Exi Min Mat Gar Fac Low Zio Used RIF Installer 1 | . . . . . . 1 . . . Robots Hacked 3 | . . . . . . . 2 . 1 Non-combat 1 | . . . . . . . 1 . . Combat 2 | . . . . . . . 1 . 1 Robot Hacks Applied 4 | . . . . . . . 3 . 1 parse_system 1 | . . . . . . . . . 1 drop_inventory 1 | . . . . . . . 1 . . find_garrison 1 | . . . . . . . 1 . . formatsys_high 1 | . . . . . . . 1 . . Relay Couplers Released 5 | . . . . . . 3 2 . . Machine Destruction 5 | . . . . . . 3 2 . . Attached 3 | . . . . . . . 3 . . Fabnet Peak Effective % . | . . . . . . . . . . Robots Rewired . | . . . . . . . . . . Allies Hacked . | . . . . . . . . . . Hacks Repelled . | . . . . . . . . . . Allies | -11 -10 -10 -10 -9 -8 -8 -7 -7 -6 -------- Run | Jun Mat Min Exi Min Mat Gar Fac Low Zio Total Allies 1 | . . . . . . . 1 . . Largest Group 1 | . . . . . . . 1 . . Highest-Rated Group 21 | . . . . . . . 21 . . Highest-Rated Ally 21 | . . . . . . . 21 . . Total Orders . | . . . . . . . . . . Ally Attacks 6 | . . . . . . . 6 . . Total Damage 122 | . . . . . . . 122 . . Kills . | . . . . . . . . . . Allies Corrupted . | . . . . . . . . . . Allies Melted . | . . . . . . . . . . Intel | -11 -10 -10 -10 -9 -8 -8 -7 -7 -6 ------- Run | Jun Mat Min Exi Min Mat Gar Fac Low Zio Robot Analysis Total . | . . . . . . . . . . Derelict Logs Recovered 6 | . . 2 . 1 . . . 2 1 Drone Launches . | . . . . . . . . . . Drone Recoveries . | . . . . . . . . . . Exploration | -11 -10 -10 -10 -9 -8 -8 -7 -7 -6 ------------- Run | Jun Mat Min Exi Min Mat Gar Fac Low Zio Turns Passed 8575 | 3 148 273 137 404 761 1241 1878 3542 188 Spaces Moved 4385 | 3 85 364 262 386 276 518 974 1437 80 Core 855 | . . 317 262 276 . . . . . Treads 1750 | . . . . 110 276 7 . 1277 80 Legs 135 | 3 85 47 . . . . . . . Wheels 1645 | . . . . . . 511 974 160 . Hover . | . . . . . . . . . . Flight . | . . . . . . . . . . Fastest Speed 50 | 120 120 50 50 50 232 135 135 150 160 Average Speed 165 | 120 120 59 50 104 238 143 146 236 231 Slowest Speed 312 | 120 120 120 50 240 240 232 210 312 232 Overloaded Moves . | . . . . . . . . . . Propulsion Burnouts . | . . . . . . . . . . Robots Hopped . | . . . . . . . . . . Cave-ins Triggered . | . . . . . . . . . . Exploration Rate (%) 49 | 2 29 87 68 90 35 58 28 88 12 Regions Visited 9 Branch Regions 5 Pre-discovered Areas 3 | . . 1 . . . . . 2 . Known Exits Taken 2 | . . . . . 1 . 1 . . Unknown Exits Taken 6 | 1 1 1 1 1 . . . 1 . Scrap Searched 9 | . . 1 . 1 . . . 7 . Spaces Dug 52 | . . . . . 1 8 38 5 . Terrain Destroyed 107 | . . . . . 13 8 80 6 . Melee 45 | . . . . . 1 8 31 5 . Projectile 12 | . . . . . . . 11 1 . AOE 49 | . . . . . 12 . 37 . . Terrain Rammed . | . . . . . . . . . . Walls Destroyed . | . . . . . . . . . . Machines Disabled . | . . . . . . . . . . Actions | -11 -10 -10 -10 -9 -8 -8 -7 -7 -6 --------- Run | Jun Mat Min Exi Min Mat Gar Fac Low Zio Total 5226 | 2 102 422 268 388 352 862 1225 1522 83 Wait 298 | . 1 43 . . 14 184 20 36 . Move 4377 | 2 84 363 261 385 276 517 973 1436 80 Hop . | . . . . . . . . . . Pick Up 70 | . . 4 3 2 18 17 22 4 . Fast Attach 20 | . . 1 . . 6 3 8 2 . Attach 37 | . . 2 1 . 2 7 20 5 . Detach 2 | . . . . . . . 1 1 . Swap 59 | . . . . 1 6 16 30 5 1 Drop 45 | . . 7 3 . 7 13 13 1 1 Fire 192 | . 16 1 . . 22 34 91 27 1 Melee 116 | . . . . . 1 63 47 5 . Ram . | . . . . . . . . . . Kick 1 | . 1 . . . . . . . . Crush 1 | . . 1 . . . . . . . Escape Stasis 8 | . . . . . . 8 . . . Rewire . | . . . . . . . . . . Trap . | . . . . . . . . . . Miscellaneous . | . . . . . . . . . . Route ------- -11/Junkyard -10/Materials (discovered 2 exits: *Min x2) -10/Mines (discovered 2 exits: [*Mat] / *Exi) -10/Exiles -9/Mines -8/Materials -8/Garrison (discovered 2 exits: *Fac x2) -7/Factory (discovered 2 exits: Sto / *Low) -7/Lower Caves (discovered 2 exits: [*Low] / [*Zio]) -6/Zion (discovered 1 exit: [*Pro]) History --------- Turn | Location | Event 1 | -11/Junkyard | Discovered new exit (range 1) 4 | -11/Junkyard | Entered Materials 20 | -10/Materials | Discovered new exit (range 16) 118 | -10/Materials | Discovered new exit (range 12) 152 | -10/Materials | Entered Mines 195 | -10/Mines | Assembled infested the area 276 | -10/Mines | Met a Derelict shopkeep closing up shop 298 | -10/Mines | Learned location of Zion (-6) 303 | -10/Mines | Discovered new exit (range 6) 304 | -10/Mines | Build established: Mutant 410 | -10/Mines | Found a damaged Exp. Sensor Array with a note attached 412 | -10/Mines | Found Prototype Device 423 | -10/Mines | Deemed a non-threat by the Exiles lab entrance 423 | -10/Mines | Discovered new exit (range 5) 425 | -10/Mines | Entered Exiles 438 | -10/Exiles | Met 8R-AWN 446 | -10/Exiles | Met EX-HEX 461 | -10/Exiles | Met EX-BIN 468 | -10/Exiles | Aligned with FarCom system 468 | -10/Exiles | Given EX-Vault access code 480 | -10/Exiles | Opened EX-Vault 487 | -10/Exiles | Found Modified TNC 490 | -10/Exiles | Found AWS/Thermal 504 | -10/Exiles | Warned to stay clear of 0b10 Research branches 528 | -10/Exiles | Identified Exp. Sensor Array 538 | -10/Exiles | Met EX-DEC 558 | -10/Exiles | Discovered new exit (range 10) 562 | -10/Exiles | Stole two prototypes: Modified TNC, AWS/Thermal 562 | -10/Exiles | Entered Mines 700 | -9/Mines | Received a Rocket Launcher from a helpful Derelict 951 | -9/Mines | Discovered new exit (range 4) 966 | -9/Mines | Entered Materials 966 | -8/Materials | Evolved 4 slots: Utility x4 1727 | -8/Materials | Identified exit to Garrison 1727 | -8/Materials | Entered Garrison 2058 | -8/Garrison | Triggered checkpoint 2260 | -8/Garrison | Destroyed 9 combat bots 2265 | -8/Garrison | Lost 4 parts (2p2u) 2276 | -8/Garrison | Triggered checkpoint 2452 | -8/Garrison | Discovered new exit (range 8) 2542 | -8/Garrison | Triggered checkpoint 2692 | -8/Garrison | Core integrity fell below 50% 2730 | -8/Garrison | Discovered new exit (range 11) 2866 | -8/Garrison | Triggered checkpoint 2898 | -8/Garrison | Installed Relay Interface Framework 2908 | -8/Garrison | Garrison Relay disabled 2968 | -8/Garrison | Entered Factory 2968 | -7/Factory | Evolved 2 slots: Utility x2 2969 | -7/Factory | Identified exit to Storage 2969 | -7/Factory | Identified exit to Lower Caves 2970 | -7/Factory | FarCom data flow suspended 3051 | -7/Factory | Adv. Hacking Suite fried by hacking feedback 3175 | -7/Factory | Build established: Scavenger-Mutant 3811 | -7/Factory | Destroyed 7 combat bots 3816 | -7/Factory | Lost 6 parts (1p3u2w) 4339 | -7/Factory | Build established: Bothacker-Mutant 4357 | -7/Factory | Core integrity fell below 50% 4531 | -7/Factory | Cargo convoy interrupted 4589 | -7/Factory | Lost 6 parts (2n2u2w) 4594 | -7/Factory | Destroyed 8 combat bots 4831 | -7/Factory | Core integrity fell below 20% 4834 | -7/Factory | Build established: Scavenger-Mutant 4846 | -7/Factory | Entered Lower Caves 4849 | -7/Lower Caves | Encountered a Warlord checkpoint 5156 | -7/Lower Caves | Lost 3 parts (2n1u) 5431 | -7/Lower Caves | Spotted B-75 Beast 6157 | -7/Lower Caves | A Derelict revealed a hidden shortcut to a safe place 7752 | -7/Lower Caves | Discovered new exit (range 12) 8388 | -7/Lower Caves | Entered Zion 8472 | -6/Zion | Discovered new exit (range 13) 8523 | -6/Zion | Learned location of 1 exit from Lower Caves 8562 | -6/Zion | System corruption cleaned by Quarantine Array 8570 | -6/Zion | RIF detected upon attempting to enter Zion 8570 | -6/Zion | Attacked by Zionites 8570 | -6/Zion | Spotted IY-F3X(B) 8570 | -6/Zion | Spotted BR-KOV(B) 8576 | -6/Zion | Destroyed by BR-KOV(B) with Slug Cannon Last Messages --------------- 08475_ System corrupted: Matter fused (-7). 08523_ Acquired derelict log, extracted data. Data stored: Lower Caves exits (x1). 08562_ System quarantine in progress... 08562_ PUBLIC SERVICE ANNOUNCEMENT: Quarantine Array scanned 1 system, cleaned 1. 08570_ PUBLIC SERVICE ANNOUNCEMENT: 0b10 RIF detected in Zion! Defend our home! 08570_ System Quarantine Field Array disabled. 08573_ Penetrated by Slug. 08573_ Adv. Treads destroyed. 08573_ Jacked BR-KOV(B)... >>parse_system Reading system data... New IDs: Cooling System Hvy. Battle Rifle 08575_ Dropped Hcp. Storage Unit. 08575_ Acquired 3 matter. 08576_ Lgt. Treads destroyed. Map ----- +----------------------------------------------------+ | ?????????????????????????????????????????????????? | | ?????????????????????????????????????????????????? | | ?????????????????????????????????????????????????? | | ?????????????????????????????????????????????????? | | ?????????????????????????????????????????????????? | | ?????????????????????????????????????????????????? | | ?????????????????????????????????????????????????? | | ????????????????????????????????????????????###??? | | ??????????????????????????????????????????###]###? | | ??????????????????????????????????????????#] ]#? | | ???????????????????????????????????????????] ]?? | | ???????????????????????????????????????????#" "##? | | ??????????????????????????????????########## ## | | ??????????????????????????????????# # | | ??????????????????????????????????# # | | ??????????????????????????????????# ### | | ??????????????????????????????????# #?## | | ??????????????????????????????????# #??##### | | ??????????????????????????????????# #??????### | | ??????????????????????????????????# #??####??# ## | | ??????????????????????????????????# ### ##?###? | | ?????????????????####?????????????# # ##???? | | ?????????????????#BB"############?# #???? | | ?????????????????#BB """"""""""#?## ##??? | | ???????????????### """" """""#?## ## ##?# | | ???????????????# [!*@! ### #?? ### | | ?????????# !!!![ ## # | | ?????????# [!]|| | | ???????????""""# %/! ## | | ???????????????### """"""""""## ### # | | ?????????????????#BB """""""""""##########????? # | | ?????????????????#BB"############????????????????? | | ?????????????????####????????????????????????????? | | ?????????????????????????????????????????????????? | | ?????????????????????????????????????????????????? | | ?????????????????????????????????????????????????? | | ?????????????????????????????????????????????????? | | ?????????????????????????????????????????????????? | | ?????????????????????????????????????????????????? | | ?????????????????????????????????????????????????? | | ?????????????????????????????????????????????????? | | ?????????????????????????????????????????????????? | | ?????????????????????????????????????????????????? | | ?????????????????????????????????????????????????? | | ?????????????????????????????????????????????????? | | ?????????????????????????????????????????????????? | | ?????????????????????????????????????????????????? | | ?????????????????????????????????????????????????? | | ?????????????????????????????????????????????????? | | ?????????????????????????????????????????????????? | +----------------------------------------------------+ Best States ------------- Heat Dissipation 67 Energy Generation 15 Energy Capacity 160 Matter Stores 300 Matter Capacity 300 Sight Range 16 Robot Scan Range 20 Terrain Scan Density 10 Jamming Range 12 Armor Coverage 375 Propulsion Shielding 66 Utility Shielding 66 Evasion (%) 55 Target Analysis 5 Recoil Reduction 2 Offensive Hacking 14 Defensive Hacking 10 Relay Coupler Types 3 Relay Coupler Value 61 Item Schematics ----------------- None Robot Schematics ------------------ None Fabricated ------------ Nothing Alien Tech Used ----------------- None Achievements -------------- None Challenges ------------ None Game ------ Seed GatlingMobileMagmablaster Manual? 0 Play Time 00:48:23 Cumulative 428.6 hours Start 2023.04.30 @ 14:52:15 End 2023.04.30 @ 21:45:56 Sessions 3 Manual Loads 0 Difficulty Rogue Special Mode None Game No. 467 Rogue 467 Adventurer 0 Explorer 0 Win Type - Total 12 Types 8/0/3/1/0/0/0/0/0 Lore% 82 Gallery% 90 Achievement% 80 Wizard Run 0 Options --------- ASCII 0 Keyboard 0 Movement Numpad Keybinds 0 Fullscreen 1 Font 18/Terminus Map View 76x50 Tactical HUD 1 Map Filters NONE Filters NONE Steam 1 RUN: c5526894-c62d-4d21-835a-f6f7af094c4c